bitfinex/quotes_SOLUSD_20250718
["timestamp","ask_amount","ask_price","bid_price","bid_amount"]
[1752813035648,0.7,181.95,181.9,7.90707868]
[1752813035851,33.90707869,181.96,181.89,5.49779793]
[1752813036153,33.90707869,181.96,181.91,7.90707868]
[1752813036454,1e-08,181.96,181.93,7.90707868]
[1752813036655,1e-08,181.96,181.95,7.90707868]
[1752813036956,1e-08,181.96,181.95,15.6]
[1752813037153,1e-08,181.96,181.95,7.90707868]
[1752813037455,1e-08,181.96,181.95,24.69176265]
[1752813037968,1e-08,181.96,181.95,16.78468397]
[1752813038170,1e-08,181.96,181.94,16.78468397]
[1752813039456,1e-08,181.96,181.94,22.28098059]
[1752813040863,1e-08,181.96,181.94,16.78468397]
[1752813041440,1e-08,181.96,181.93,5.4966164]
[1752813041779,7.90707868,181.94,181.86,106.14050227]
[1752813041943,7.90707868,181.92,181.86,114.04758095]
[1752813042656,7.90707868,181.93,181.89,16.78468397]
[1752813042957,8.60707868,181.93,181.89,16.78468397]
[1752813043152,7.90707868,181.91,181.88,28.94]
[1752813043350,8.60707868,181.91,181.87,16.78468397]
[1752813044748,7.90707868,181.92,181.87,24.69176265]
[1752813045143,26.7,181.94,181.87,24.69176265]
[1752813045369,7.90707868,181.92,181.87,24.69176265]
[1752813045575,7.90707868,181.92,181.87,30.18992145]
[1752813046661,7.90707868,181.93,181.87,30.18992145]
[1752813047546,7.90707868,181.93,181.87,45.78992145]
[1752813049665,26.7,181.92,181.86,145.1817686]
[1752813049869,7.90707868,181.89,181.86,116.2417686]
[1752813050177,8.60707868,181.89,181.86,100.6417686]
[1752813050775,7.90707868,181.87,181.86,100.6417686]
[1752813050954,26.0,181.84,181.82,0.03]
[1752813051288,7.90707868,181.83,181.82,0.03]
[1752813051593,14.1167212,181.83,181.82,0.03]
[1752813052045,8.61707868,181.83,181.82,0.03]
[1752813052561,14.1167212,181.83,181.82,0.03]
[1752813054453,14.1167212,181.83,181.73,0.03]
[1752813054454,26.0,181.8,181.73,0.03]
[1752813054659,7.90707868,181.74,181.73,0.03]
[1752813054877,62.76707868,181.74,181.73,0.03]
[1752813055083,63.47707868,181.74,181.73,0.03]
[1752813055588,37.47707868,181.74,181.73,0.03]
[1752813055762,45.22367868,181.74,181.73,0.03]
[1752813056176,101.85933569,181.74,181.73,0.03]
[1752813056368,107.3617017,181.74,181.73,0.03]
[1752813057280,26.0,181.71,181.69,0.03]
[1752813057596,28.88,181.7,181.69,0.03]
[1752813057806,36.78707868,181.7,181.69,0.03]
[1752813058572,42.290656,181.7,181.69,0.03]
[1752813058769,43.000656,181.7,181.69,0.03]
[1752813059196,37.49707868,181.7,181.69,0.03]
[1752813061269,43.000656,181.7,181.69,0.03]
[1752813061490,26.0,181.67,181.65,0.03]
[1752813061667,36.74707868,181.66,181.65,0.03]
[1752813062068,37.45707868,181.66,181.65,0.03]
[1752813063172,37.45707868,181.66,181.63,0.01466825]
[1752813063173,34.189,181.64,181.63,0.01466825]
[1752813063486,127.55530589,181.64,181.63,0.01466825]
[1752813063664,128.26530589,181.64,181.63,0.01466825]
[1752813065197,5.50569839,181.63,181.62,0.03]
[1752813065506,66.68988028,181.63,181.62,0.03]
[1752813065668,52.56710321,181.63,181.62,0.03]
[1752813065992,89.29418189,181.63,181.62,0.03]
[1752813066895,90.00418189,181.63,181.62,0.03]
[1752813067389,95.50988028,181.63,181.62,0.03]
[1752813068603,95.50988028,181.63,181.61,0.03]
[1752813068781,7.90707868,181.62,181.61,0.03]
[1752813068983,19.63541351,181.62,181.61,0.03]
[1752813069379,25.14141505,181.62,181.61,0.03]
[1752813072794,26.0,181.6,181.59,0.03]
[1752813072998,62.70707868,181.6,181.59,0.03]
[1752813073199,67.86646219,181.6,181.59,0.03]
[1752813073395,78.58184745,181.6,181.59,0.03]
[1752813073900,84.08845537,181.6,181.59,0.03]
[1752813077806,26.0,181.57,181.51,0.2]
[1752813078009,41.81415736,181.57,181.51,0.2]
[1752813078306,33.90707868,181.55,181.51,0.2]
[1752813078512,33.90707868,181.55,181.51,5.70925776]
[1752813078898,33.90707868,181.55,181.54,0.91]
[1752813079198,62.72707868,181.55,181.54,0.91]
[1752813080105,7.90707868,181.55,181.54,0.91]
[1752813080320,36.72707868,181.55,181.54,0.91]
[1752813080487,62.72707868,181.55,181.54,0.91]
[1752813083007,68.23520316,181.55,181.54,0.2]
[1752813083317,62.72707868,181.55,181.54,0.92]
[1752813083520,68.23520316,181.55,181.54,0.2]
[1752813083826,54.82,181.55,181.54,0.2]
[1752813084118,62.72707868,181.55,181.54,0.92]
[1752813085528,26.0,181.55,181.54,0.92]
[1752813085709,54.78,181.55,181.54,0.92]
[1752813087220,33.90707868,181.55,181.54,0.2]
[1752813087402,62.68707868,181.55,181.54,0.2]
[1752813087720,33.90707868,181.55,181.54,0.2]
[1752813088113,62.66707868,181.55,181.54,0.2]
[1752813088316,54.76,181.55,181.54,0.2]
[1752813088504,9.71345558,181.56,181.54,8.82707868]
[1752813088710,9.71345558,181.56,181.55,8.62707868]
[1752813088895,9.71345558,181.56,181.55,0.72]
[1752813089097,9.71345558,181.56,181.55,5.68447726]
[1752813089320,9.71345558,181.56,181.55,0.72]
[1752813089835,0.06,181.64,181.55,41.74759691]
[1752813090124,0.06,181.64,181.61,4.96447726]
[1752813090497,26.0,181.63,181.62,0.72]
[1752813091031,0.06,181.64,181.62,0.72]
[1752813091699,26.0,181.63,181.62,0.72]
[1752813092222,26.0,181.63,181.62,23.01068551]
[1752813092405,26.06,181.64,181.62,30.9491021]
[1752813092599,26.06,181.64,181.63,0.72]
[1752813092798,9.71484076,181.68,181.64,16.78468397]
[1752813093012,9.71484076,181.68,181.66,24.72310056]
[1752813093215,9.71484076,181.68,181.67,0.72]
[1752813093398,39.71484076,181.68,181.67,0.72]
[1752813095011,39.71484076,181.68,181.67,14.16290274]
[1752813095328,39.71484076,181.68,181.67,0.72]
[1752813096131,39.77484076,181.68,181.67,0.72]
[1752813097320,9.77484076,181.68,181.67,30.94758671]
[1752813097631,9.77484076,181.68,181.67,23.00917012]
[1752813097632,0.06,181.68,181.67,23.00917012]
[1752813097927,0.06,181.68,181.67,0.72]
[1752813098229,0.06,181.68,181.67,6.22448615]
[1752813098427,0.06,181.68,181.67,8.65841659]
[1752813099321,0.74,181.76,181.68,16.78468397]
[1752813099322,7.99841659,181.76,181.68,16.78468397]
[1752813099508,7.93841659,181.74,181.7,16.78468397]
[1752813099825,7.93841659,181.74,181.71,0.72]
[1752813100208,7.93841659,181.74,181.72,0.72]
[1752813101826,7.93841659,181.73,181.68,0.72]
[1752813102022,7.93841659,181.72,181.69,0.72]
[1752813103034,26.0,181.75,181.7,0.72]
[1752813103213,54.76,181.75,181.7,8.65841659]
[1752813103414,54.76,181.75,181.71,0.72]
[1752813103614,54.76,181.75,181.7,7.93841659]
[1752813103915,26.0,181.73,181.72,0.72]
[1752813107136,26.0,181.73,181.72,6.2229716]
[1752813107430,26.0,181.73,181.72,0.72]
[1752813109635,7.99841659,181.76,181.72,0.72]
[1752813109636,26.0,181.74,181.72,30.94607216]
[1752813109849,26.0,181.73,181.72,30.22607216]
[1752813110013,26.0,181.73,181.72,22.28765557]
[1752813110212,26.0,181.73,181.71,15.6]
[1752813110213,33.93841659,181.73,181.71,15.6]
[1752813110413,54.7,181.73,181.71,15.6]
[1752813110628,7.93841659,181.72,181.71,15.6]
[1752813110826,62.63841659,181.73,181.71,16.32]
[1752813111036,62.63841659,181.73,181.72,0.72]
[1752813111825,62.63841659,181.73,181.71,15.6]
[1752813112025,7.93841659,181.72,181.71,15.6]
[1752813112224,8.64841659,181.72,181.66,0.69]
[1752813112541,7.93841659,181.69,181.67,16.78468397]
[1752813112836,7.93841659,181.68,181.66,0.69]
[1752813113213,28.68,181.69,181.67,0.69]
[1752813113214,36.61841659,181.69,181.67,0.69]
[1752813113829,28.68,181.69,181.67,0.69]
[1752813114218,28.68,181.69,181.68,0.69]
[1752813115149,7.93841659,181.72,181.68,0.69]
[1752813115458,0.06,181.76,181.69,7.93841659]
[1752813115619,36.67841659,181.76,181.71,22.28781964]
[1752813115812,26.0,181.73,181.72,0.69]
[1752813116035,26.0,181.73,181.71,22.28781964]
[1752813116615,26.0,181.73,181.72,0.69]
[1752813117235,26.0,181.73,181.72,6.1929716]
[1752813117546,26.0,181.73,181.72,22.97765557]
[1752813117743,26.06,181.73,181.72,22.97765557]
[1752813118035,26.06,181.73,181.67,13.76087551]
[1752813118344,26.06,181.73,181.71,16.78468397]
[1752813118643,26.06,181.73,181.72,0.69]
[1752813119847,33.99841659,181.73,181.69,16.78468397]
[1752813120022,33.99841659,181.73,181.7,0.69]
[1752813120214,33.99841659,181.73,181.71,0.69]
[1752813120620,33.99841659,181.73,181.69,16.78468397]
[1752813120820,33.99841659,181.73,181.66,0.03]
[1752813120821,7.93841659,181.7,181.66,0.03]
[1752813121119,7.93841659,181.67,181.66,0.03]
[1752813121321,36.57841659,181.67,181.66,0.03]
[1752813123544,42.79290274,181.67,181.66,0.03]
[1752813124242,42.08290274,181.67,181.66,0.03]
[1752813124449,28.64,181.67,181.66,0.03]
[1752813124946,36.57841659,181.67,181.66,0.03]
[1752813126233,7.93841659,181.68,181.66,0.72]
[1752813126730,7.93841659,181.67,181.66,0.72]
[1752813128469,26.0,181.67,181.66,0.72]
[1752813129756,7.93841659,181.67,181.66,0.03]
[1752813130748,63.28841659,181.67,181.66,0.03]
[1752813131048,60.31258681,181.67,181.66,0.03]
[1752813131851,65.81707296,181.67,181.66,0.03]
[1752813132365,59.60258681,181.67,181.66,0.03]
[1752813133059,62.57963654,181.67,181.66,0.03]
[1752813133524,54.64,181.67,181.66,0.03]
[1752813133730,33.93963654,181.67,181.66,0.72]
[1752813134236,26.0,181.67,181.66,0.72]
[1752813134942,226.0,181.67,181.66,0.72]
[1752813135450,226.0,181.67,181.66,0.03]
[1752813138937,226.0,181.67,181.66,0.72]
[1752813140440,200.0,181.67,181.66,17.50468397]
[1752813140635,200.0,181.67,181.66,41.04432051]
[1752813140835,200.0,181.67,181.66,46.54910967]
[1752813142865,200.0,181.67,181.66,49.30438425]
[1752813144364,200.0,181.67,181.66,46.54910967]
[1752813145152,200.0,181.67,181.66,38.60947313]
[1752813147091,200.0,181.67,181.66,46.54910967]
[1752813148907,200.0,181.67,181.66,38.60947313]
[1752813149111,200.0,181.67,181.66,46.54910967]
[1752813150316,200.0,181.67,181.66,75.16910967]
[1752813151598,200.0,181.67,181.66,67.22947313]
[1752813151910,200.0,181.67,181.66,75.16910967]
[1752813152911,200.0,181.67,181.66,67.22947313]
[1752813153490,200.0,181.67,181.66,72.18743755]
[1752813157308,200.0,181.67,181.66,67.22947313]
[1752813157514,200.0,181.67,181.66,72.18743755]
[1752813159526,200.0,181.67,181.66,74.89445993]
[1752813161114,200.0,181.67,181.66,45.58445993]
[1752813161314,200.0,181.67,181.66,37.91947313]
[1752813162929,200.0,181.67,181.66,42.87743755]
[1752813163125,200.0,181.67,181.66,43.59743755]
[1752813167231,200.0,181.67,181.66,38.63947313]
[1752813167412,200.0,181.67,181.66,43.59743755]
[1752813168137,200.0,181.67,181.66,71.49743755]
[1752813168336,200.0,181.67,181.66,72.21743755]
[1752813171435,200.0,181.67,181.66,71.49743755]
[1752813172426,200.0,181.67,181.66,71.47743755]
[1752813172640,200.0,181.67,181.66,61.01468397]
[1752813172842,200.67,181.67,181.66,0.03]
[1752813173422,200.0,181.67,181.66,0.03]
[1752813173747,200.0,181.67,181.66,5.53478916]
[1752813178358,200.0,181.67,181.66,0.03]
[1752813179572,200.67,181.67,181.66,0.03]
[1752813180068,200.0,181.67,181.66,0.03]
[1752813182668,200.0,181.67,181.66,22.44264839]
[1752813182874,200.0,181.67,181.66,51.04264839]
[1752813184161,200.0,181.67,181.66,56.54743755]
[1752813186673,200.0,181.67,181.66,67.18947313]
[1752813186878,200.0,181.67,181.66,72.14743755]
[1752813190356,171.97916354,181.67,181.66,72.14743755]
[1752813190559,171.97916354,181.67,181.66,67.18947313]
[1752813190763,171.97916354,181.67,181.66,72.14743755]
[1752813192171,171.97916354,181.67,181.66,42.87743755]
[1752813192372,171.97916354,181.67,181.66,71.47743755]
[1752813194099,171.97916354,181.67,181.66,72.14743755]
[1752813198191,171.97916354,181.67,181.66,67.18947313]
[1752813198391,171.97916354,181.67,181.66,72.14743755]
[1752813199500,115.38141853,181.67,181.66,72.14743755]
[1752813199803,87.36895721,181.67,181.66,72.14743755]
[1752813200599,13.26504378,181.67,181.66,56.54743755]
[1752813200807,0.06,181.68,181.66,56.54743755]
[1752813201013,0.06,181.68,181.67,27.24713454]
[1752813201308,0.06,181.68,181.67,27.91713454]
[1752813202685,0.06,181.68,181.67,22.95917012]
[1752813202886,0.06,181.68,181.67,27.91713454]
[1752813203401,0.06,181.68,181.67,56.49713454]
[1752813204092,0.06,181.68,181.67,27.91713454]
[1752813204319,0.06,181.68,181.67,26.48917012]
[1752813204616,0.06,181.68,181.67,60.02713454]
[1752813206092,0.06,181.68,181.67,60.73713454]
[1752813207001,0.06,181.68,181.67,60.02713454]
[1752813207395,0.06,181.68,181.66,5.5347101]
[1752813207590,0.71,181.67,181.66,5.5347101]
[1752813207790,0.71,181.67,181.66,0.03]
[1752813208095,0.71,181.67,181.66,5.53478916]
[1752813209315,0.71,181.67,181.66,0.03]
[1752813210786,0.06,181.68,181.66,0.03]
[1752813210981,0.77,181.68,181.66,0.03]
[1752813211187,0.06,181.68,181.66,0.03]
[1752813211385,0.71,181.67,181.66,0.03]
[1752813212703,5.66796442,181.67,181.66,0.03]
[1752813212902,11.17245057,181.67,181.66,0.03]
[1752813213701,5.66796442,181.67,181.66,0.03]
[1752813215410,11.17245057,181.67,181.66,0.03]
[1752813216711,0.71,181.67,181.66,0.03]
[1752813216925,5.66796442,181.67,181.66,0.03]
[1752813217216,0.71,181.67,181.66,0.03]
[1752813217424,5.66796442,181.67,181.66,0.03]
[1752813218026,11.17245057,181.67,181.66,0.03]
[1752813218612,0.06,181.68,181.67,16.78468397]
[1752813218793,0.06,181.68,181.67,51.01264839]
[1752813219302,0.06,181.68,181.67,56.51713454]
[1752813225024,0.06,181.68,181.67,55.04917012]
[1752813225220,0.06,181.68,181.67,60.71713454]
[1752813225719,0.06,181.68,181.67,32.15713454]
[1752813228328,0.06,181.68,181.67,27.19917012]
[1752813228517,0.06,181.68,181.67,32.15713454]
[1752813232226,0.06,181.71,181.67,32.15713454]
[1752813232227,0.06,181.71,181.67,45.91834993]
[1752813232432,0.06,181.71,181.7,21.74264839]
[1752813232610,0.06,181.71,181.7,54.48264839]
[1752813232812,0.06,181.71,181.7,55.16264839]
[1752813233309,0.06,181.71,181.7,60.66622571]
[1752813234524,0.06,181.72,181.71,16.78468397]
[1752813234737,0.06,181.72,181.71,22.42264839]
[1752813235730,0.06,181.72,181.71,27.92592283]
[1752813236841,0.06,181.72,181.71,32.12592283]
[1752813237648,0.06,181.72,181.71,27.16795841]
[1752813237945,0.06,181.72,181.71,32.12592283]
[1752813239444,0.06,181.72,181.71,31.44592283]
[1752813239744,0.06,181.72,181.71,55.02795841]
[1752813240650,0.06,181.72,181.71,60.66592283]
[1752813241048,0.06,181.72,181.71,55.70795841]
[1752813241341,0.06,181.72,181.71,60.66592283]
[1752813242450,0.06,181.73,181.72,20.92468397]
[1752813242622,0.06,181.73,181.72,26.56264839]
[1752813242949,0.06,181.73,181.72,32.06561999]
[1752813243147,1e-08,181.73,181.72,32.06561999]
[1752813243339,0.06,181.81,181.76,33.30468397]
[1752813243541,0.06,181.81,181.8,26.70061281]
[1752813243732,0.06,181.81,181.8,54.30264839]
[1752813243938,0.06,181.81,181.8,54.98264839]
[1752813244451,0.06,181.81,181.8,49.34468397]
[1752813244650,0.06,181.81,181.8,54.30264839]
[1752813244838,0.06,181.81,181.8,49.34468397]
[1752813245351,0.06,181.81,181.8,59.80319844]
[1752813245530,0.06,181.81,181.8,54.84523402]
[1752813246754,0.06,181.81,181.8,0.68]
[1752813247053,0.06,181.81,181.8,50.94264839]
[1752813247246,0.06,181.81,181.8,56.44319844]
[1752813247449,0.06,181.81,181.8,60.48319844]
[1752813248145,0.06,181.81,181.8,55.52523402]
[1752813248354,0.06,181.81,181.8,60.48319844]
[1752813248659,0.06,181.81,181.8,55.52523402]
[1752813248958,0.06,181.81,181.8,60.48319844]
[1752813250659,1e-08,181.81,181.8,65.44116286]
[1752813251357,1e-08,181.81,181.8,65.99121786]
[1752813252255,1e-08,181.81,181.8,56.07528902]
[1752813252433,1e-08,181.81,181.8,31.96319844]
[1752813252634,1e-08,181.81,181.8,59.80319844]
[1752813253451,1e-08,181.81,181.8,60.48319844]
[1752813253655,1e-08,181.81,181.8,55.52523402]
[1752813254047,1e-08,181.81,181.8,60.48319844]
[1752813254236,1e-08,181.81,181.8,55.52523402]
[1752813254436,1e-08,181.81,181.8,60.48319844]
[1752813256339,1e-08,181.81,181.8,65.99121786]
[1752813256556,1e-08,181.81,181.8,60.48319844]
[1752813257766,1e-08,181.81,181.8,65.44116286]
[1752813258058,0.06,181.85,181.81,16.78468397]
[1752813258248,0.06,181.85,181.84,21.74264839]
[1752813258443,0.06,181.85,181.84,50.24264839]
[1752813258667,0.06,181.85,181.84,50.92264839]
[1752813259640,0.06,181.85,181.84,50.24264839]
[1752813259841,0.06,181.85,181.84,55.74198846]
[1752813260270,0.06,181.85,181.84,50.78402404]
[1752813261465,0.06,181.85,181.84,55.74198846]
[1752813261855,0.06,181.85,181.84,50.78402404]
[1752813263150,0.06,181.85,181.84,46.28402404]
[1752813263460,0.06,181.85,181.84,50.32402404]
[1752813264165,0.06,181.85,181.84,55.95198846]
[1752813264583,0.06,181.85,181.84,50.32402404]
[1752813264883,0.06,181.85,181.84,55.28198846]
[1752813265666,0.06,181.85,181.84,55.95198846]
[1752813267265,0.06,181.85,181.84,55.28198846]
[1752813267466,0.06,181.85,181.84,55.95198846]
[1752813269363,0.06,181.85,181.84,55.28198846]
[1752813269759,0.06,181.85,181.84,55.95198846]
[1752813271174,1e-08,181.85,181.84,55.95198846]
[1752813271383,1e-08,181.85,181.84,56.50192246]
[1752813273969,1e-08,181.85,181.84,55.95198846]
[1752813274169,1e-08,181.85,181.84,50.99402404]
[1752813274471,1e-08,181.85,181.84,55.95198846]
[1752813275379,0.1,181.87,181.86,20.82468396]
[1752813275572,0.1,181.87,181.86,54.28264838]
[1752813275980,0.1,181.87,181.86,49.32468396]
[1752813276687,0.1,181.87,181.86,20.82468396]
[1752813276986,0.1,181.87,181.86,49.32468396]
[1752813277373,0.1,181.87,181.86,54.82341925]
[1752813277572,0.1,181.87,181.86,20.82468396]
[1752813277771,12.10636442,181.87,181.85,4.03999999]
[1752813277966,5.67796442,181.86,181.85,4.03999999]
[1752813278387,5.67796442,181.86,181.81,28.5]
[1752813278575,4.95796442,181.84,181.82,16.78468397]
[1752813278876,5.67796442,181.84,181.82,16.78468397]
[1752813279083,0.72,181.84,181.82,16.78468397]
[1752813279274,5.67796442,181.84,181.82,16.78468397]
[1752813279475,0.72,181.84,181.82,22.28452961]
[1752813281282,7.1484,181.87,181.84,16.78468397]
[1752813281591,7.1484,181.87,181.86,16.78468397]
[1752813281997,12.10636442,181.87,181.86,16.78468397]
[1752813283095,7.1484,181.87,181.86,16.78468397]
[1752813283276,12.10636442,181.87,181.86,16.78468397]
[1752813283475,4.95796442,181.87,181.86,16.78468397]
[1752813284203,26.0,181.88,181.86,16.78468397]
[1752813284399,4.95796442,181.87,181.86,16.78468397]
[1752813284602,26.0,181.88,181.85,4.03999999]
[1752813284918,4.95796442,181.86,181.85,4.03999999]
[1752813285277,4.95796442,181.86,181.85,20.82468396]
[1752813285483,4.95796442,181.87,181.85,9.53903765]
[1752813285883,26.0,181.88,181.85,9.53903765]
[1752813286078,0.08,181.9,181.85,9.53903765]
[1752813286297,4.95796442,181.88,181.85,10.20903765]
[1752813286807,4.95796442,181.87,181.85,9.53903765]
[1752813288004,4.95796442,181.87,181.85,4.03999999]
[1752813288187,4.95796442,181.86,181.85,4.03999999]
[1752813288384,4.95796442,181.87,181.85,9.53903765]
[1752813288710,26.0,181.91,181.85,9.53903765]
[1752813288887,4.95796442,181.89,181.87,16.78468397]
[1752813289082,1.6567,181.92,181.87,20.82468396]
[1752813289389,26.0,181.9,181.89,16.78468397]
[1752813289588,4.95796442,181.9,181.88,28.62]
[1752813289809,1.6567,181.92,181.89,16.78468397]
[1752813290107,0.06,181.91,181.89,21.49468396]
[1752813290988,0.06,181.91,181.9,46.07468397]
[1752813291188,0.06,181.91,181.9,51.57221008]
[1752813292207,0.06,181.91,181.9,60.57017449]
[1752813292717,0.06,181.91,181.9,55.65221007]
[1752813293489,0.06,181.91,181.9,60.61017449]
[1752813293911,0.06,181.91,181.9,55.65221007]
[1752813294120,0.06,181.91,181.9,60.61017449]
[1752813295325,0.06,181.91,181.9,55.65221007]
[1752813295819,0.1,181.92,181.91,16.78468397]
[1752813295989,1e-08,181.96,181.94,16.78468397]
[1752813296190,1e-08,181.96,181.95,28.7]
[1752813296393,1e-08,181.96,181.95,29.37]
[1752813297197,1e-08,181.96,181.95,45.48468397]
[1752813297403,1e-08,181.96,181.95,50.98069935]
[1752813298207,1e-08,181.96,181.95,51.65069935]
[1752813298707,1e-08,181.96,181.95,50.98069935]
[1752813298902,1e-08,181.96,181.95,22.28069935]
[1752813300320,1e-08,181.96,181.95,22.95069935]
[1752813301528,1e-08,181.96,181.95,31.88866375]
[1752813301710,1e-08,181.96,181.95,26.93069933]
[1752813302214,1e-08,181.96,181.95,31.88866375]
[1752813302411,1e-08,181.96,181.95,26.93069933]
[1752813302726,1e-08,181.96,181.95,31.88866375]
[1752813304121,1e-08,181.96,181.95,26.26069933]
[1752813305902,1.63610001,181.96,181.9,16.78468397]
[1752813306107,4.95796442,181.94,181.92,16.78468397]
[1752813306717,1.63610001,181.96,181.92,16.78468397]
[1752813306906,4.95796442,181.95,181.92,16.78468397]
[1752813307817,4.95796442,181.94,181.92,5.49687575]
[1752813308027,1.55610001,181.96,181.92,5.49687575]
[1752813308333,4.95796442,181.95,181.92,5.49687575]
[1752813308705,4.95796442,181.95,181.92,16.78468397]
[1752813309325,4.95796442,181.95,181.92,17.45468397]
[1752813309724,1e-08,181.96,181.92,17.45468397]
[1752813310032,1e-08,181.96,181.94,16.78468397]
[1752813310530,4.95796443,181.96,181.94,16.78468397]
[1752813310920,4.95796442,181.95,181.94,16.78468397]
[1752813311430,4.95796442,181.95,181.94,20.76468395]
[1752813311733,1e-08,181.96,181.94,20.76468395]
[1752813311913,4.95796443,181.96,181.94,26.26096047]
[1752813313146,1e-08,181.96,181.95,17.45468397]
[1752813313329,1e-08,181.96,181.95,16.78468397]
[1752813313536,1e-08,181.96,181.95,17.45468397]
[1752813313748,1e-08,181.96,181.95,16.78468397]
[1752813314340,27.514,181.93,181.92,0.03]
[1752813314516,26.0,181.92,181.83,0.67]
[1752813314834,4.95796442,181.87,181.84,16.78468397]
[1752813315134,4.95796442,181.86,181.83,16.78468397]
[1752813316108,5.03796442,181.86,181.81,16.78468397]
[1752813316309,5.03796442,181.86,181.8,28.81]
[1752813316526,0.08,181.86,181.81,16.78468397]
[1752813316735,5.03796442,181.86,181.8,16.81468397]
[1752813317120,10.53669971,181.86,181.8,16.81468397]
[1752813318732,10.53669971,181.86,181.8,0.03]
[1752813318931,26.0,181.84,181.8,0.03]
[1752813319133,4.95796442,181.81,181.8,0.03]
[1752813319846,5.03796442,181.81,181.8,0.03]
[1752813320051,4.95796442,181.81,181.8,0.03]
[1752813320628,10.45821193,181.81,181.8,0.03]
[1752813320841,10.53821193,181.81,181.8,0.03]
[1752813321253,5.03796442,181.81,181.8,0.03]
[1752813321429,4.95796442,181.81,181.8,0.03]
[1752813324631,4.95796442,181.81,181.8,0.72]
[1752813325058,4.95796442,181.81,181.8,0.03]
[1752813325746,0.08,181.83,181.8,0.03]
[1752813325950,4.95796442,181.81,181.8,0.03]
[1752813326469,54.88,181.84,181.8,0.03]
[1752813326632,54.8,181.84,181.8,0.03]
[1752813326837,4.95796442,181.83,181.81,0.69]
[1752813327045,26.0,181.84,181.81,0.69]
[1752813327270,4.95796442,181.83,181.81,0.69]
[1752813328154,4.95796442,181.84,181.81,6.1902252]
[1752813328350,30.95796442,181.86,181.82,17.47468397]
[1752813328575,30.95796442,181.86,181.83,0.69]
[1752813329657,4.95796442,181.84,181.82,16.78468397]
[1752813330045,4.95796442,181.84,181.8,0.72]
[1752813330245,4.95796442,181.84,181.81,16.78468397]
[1752813331574,4.95796442,181.85,181.82,0.69]
[1752813331880,4.95796442,181.85,181.83,0.69]
[1752813332087,5.49846426,181.87,181.81,20.88468397]
[1752813332088,1.508,181.9,181.84,0.69]
[1752813332262,4.95796442,181.91,181.85,16.78468397]
[1752813332473,4.95796442,181.9,181.85,21.74264839]
[1752813332646,26.0,181.89,181.85,16.78468397]
[1752813332990,26.0,181.89,181.86,0.69]
[1752813333152,4.95796442,181.9,181.86,6.1887197]
[1752813333479,26.0,181.9,181.86,6.1887197]
[1752813333783,26.0,181.9,181.87,0.69]
[1752813333953,4.95796442,181.91,181.87,0.69]
[1752813334153,30.95796442,181.91,181.87,0.69]
[1752813334979,26.0,181.91,181.88,0.69]
[1752813335293,0.06,181.92,181.89,0.69]
[1752813335591,30.0,181.9,181.89,0.69]
[1752813336466,5.01796442,181.92,181.87,21.74264839]
[1752813336667,5.01796442,181.92,181.87,17.47468397]
[1752813336985,5.01796442,181.92,181.88,0.69]
[1752813337480,0.06,181.92,181.88,0.69]
[1752813339651,5.01796442,181.92,181.87,22.28299041]
[1752813339856,5.09796442,181.92,181.87,22.97299041]
[1752813340069,5.01796442,181.92,181.87,22.97299041]
[1752813340271,0.06,181.92,181.88,0.69]
[1752813340575,0.06,181.92,181.88,4.79]
[1752813340760,0.06,181.92,181.88,4.1]
[1752813340962,0.06,181.92,181.89,0.69]
[1752813341167,0.06,181.92,181.9,0.69]
[1752813342996,0.06,181.92,181.89,5.49758176]